fUST/lending_fUST_20250802
["ID","MTS","AMOUNT","RATE_DAILY","PERIOD"]
[376830555,1754135448080,-460.0,0.00026849,10]
[376830557,1754135448090,-460.0,0.00026849,10]
[376830558,1754135448100,-460.0,0.00026849,10]
[376830560,1754135448110,-460.0,0.00026849,10]
[376830562,1754135448121,-460.0,0.00026849,10]
[376830564,1754135448130,-460.0,0.00026849,10]
[376830566,1754135448140,-460.0,0.00026849,10]
[376830568,1754135448149,-460.0,0.00026849,10]
[376830570,1754135448159,-460.0,0.00026849,10]
[376830572,1754135448169,-460.0,0.00026849,10]
[376830574,1754135448179,-460.0,0.00026849,10]
[376830575,1754135448189,-482.95334249,0.00026849,10]
[376830576,1754135448201,-460.0,0.00026849,10]
[376830577,1754135448211,-460.0,0.00026849,10]
[376830578,1754135448223,-460.0,0.00026849,10]
[376830579,1754135448233,-460.0,0.00026849,10]
[376830580,1754135448243,-460.0,0.00026849,10]
[376830581,1754135448253,-460.0,0.00026849,10]
[376830582,1754135448262,-460.0,0.00026849,10]
[376830583,1754135448271,-756.95,0.00026849,10]
[376830584,1754135448286,-607.64,0.00026849,10]
[376830585,1754135448295,-756.95,0.00026849,10]
[376830586,1754135448305,-756.95,0.00026849,10]
[376830587,1754135448314,-756.95,0.00026849,10]
[376830588,1754135448323,-756.95,0.00026849,10]
[376830589,1754135448333,-756.95,0.00026849,10]
[376830590,1754135448343,-756.95,0.00026849,10]
[376830591,1754135448352,-756.95,0.00026849,10]
[376830592,1754135448362,-442.67509529,0.00026849,10]
[376830593,1754135448371,-756.95,0.00026849,10]
[376830594,1754135448380,-460.0,0.00026849,10]
[376830595,1754135448390,-460.0,0.00026849,10]
[376830596,1754135448399,-460.0,0.00026849,10]
[376830597,1754135448408,-244.9121723,0.00026849,10]
[376830598,1754135448418,-460.0,0.00026849,10]
[376830599,1754135448427,-756.95,0.00026849,10]
[376830600,1754135448436,-528.87262482,0.00026849,10]
[376830601,1754135448445,-756.95,0.00026849,10]
[376830602,1754135448454,-756.95,0.00026849,10]
[376830603,1754135448464,-756.95,0.00026849,10]
[376830604,1754135448473,-756.95,0.00026849,10]
[376830605,1754135448482,-756.95,0.00026849,10]
[376830606,1754135448491,-756.95,0.00026849,10]
[376830607,1754135448501,-460.0,0.00026849,10]
[376830608,1754135448511,-460.0,0.00026849,10]
[376830609,1754135448524,-460.0,0.00026849,10]
[376830610,1754135448535,-756.95,0.00026849,10]
[376830611,1754135448545,-460.0,0.00026849,10]
[376830612,1754135448555,-460.0,0.00026849,10]
[376830613,1754135448565,-460.0,0.00026849,10]
[376830614,1754135448575,-756.95,0.00026849,10]
[376830615,1754135448584,-460.0,0.00026849,10]
[376830616,1754135448593,-460.0,0.00026849,10]
[376830617,1754135448602,-756.95,0.00026849,10]
[376830618,1754135448612,-460.0,0.00026849,10]
[376830619,1754135448621,-460.0,0.00026849,10]
[376830620,1754135448630,-756.95,0.00026849,10]
[376830621,1754135448639,-460.0,0.00026849,10]
[376830622,1754135448648,-460.0,0.00026849,10]
[376830623,1754135448657,-756.95,0.00026849,10]
[376830624,1754135448667,-539.65149381,0.00026849,10]
[376830625,1754135448677,-756.95,0.00026849,10]
[376830626,1754135448686,-460.0,0.00026849,10]
[376830627,1754135448696,-460.0,0.00026849,10]
[376830629,1754135448706,-460.0,0.00026849,10]
[376830630,1754135448715,-460.0,0.00026849,10]
[376830631,1754135448725,-460.0,0.00026849,10]
[376830633,1754135448735,-460.0,0.00026849,10]
[376830634,1754135448744,-460.0,0.00026849,10]
[376830635,1754135448753,-460.0,0.00026849,10]
[376830637,1754135448763,-460.0,0.00026849,10]
[376830638,1754135448772,-756.95,0.00026849,10]
[376830640,1754135448785,-460.0,0.00026849,10]
[376830641,1754135448794,-757.03201112,0.00026849,10]
[376830643,1754135448804,-460.0,0.00026849,10]
[376830645,1754135448814,-460.0,0.00026849,10]
[376830647,1754135448828,-460.0,0.00026849,10]
[376830649,1754135448840,-460.0,0.00026849,10]
[376830651,1754135448849,-460.0,0.00026849,10]
[376830653,1754135448858,-460.0,0.00026849,10]
[376830655,1754135448868,-440.75,0.00026849,10]
[376830657,1754135448878,-460.0,0.00026849,10]
[376830659,1754135448887,-460.0,0.00026849,10]
[376830661,1754135448897,-460.0,0.00026849,10]
[376830663,1754135448907,-460.0,0.00026849,10]
[376830675,1754135449012,-460.0,0.00026849,10]
[376830677,1754135449022,-460.0,0.00026849,10]
[376830679,1754135449034,-460.0,0.00026849,10]
[376830681,1754135449043,-460.0,0.00026849,10]
[376830682,1754135449053,-460.0,0.00026849,10]
[376830684,1754135449064,-460.0,0.00026849,10]
[376830687,1754135449075,-460.0,0.00026849,10]
[376830689,1754135449085,-460.0,0.00026849,10]
[376830691,1754135449095,-460.0,0.00026849,10]
[376830693,1754135449105,-460.0,0.00026849,10]
[376830695,1754135449115,-471.3,0.00026849,10]
[376830697,1754135449125,-460.0,0.00026849,10]
[376830699,1754135449135,-460.0,0.00026849,10]
[376830700,1754135449144,-460.0,0.00026849,10]
[376830702,1754135449154,-460.0,0.00026849,10]
[376830704,1754135449164,-460.0,0.00026849,10]
[376830706,1754135449174,-460.0,0.00026849,10]
[376830708,1754135449184,-526.37830837,0.00026849,10]
[376830710,1754135449193,-460.0,0.00026849,10]
[376830712,1754135449203,-460.0,0.00026849,10]
[376830714,1754135449212,-460.0,0.00026849,10]
[376830716,1754135449222,-460.0,0.00026849,10]
[376830718,1754135449232,-460.0,0.00026849,10]
[376830720,1754135449241,-460.0,0.00026849,10]
[376830722,1754135449251,-325.66,0.00026849,10]
[376830724,1754135449260,-460.0,0.00026849,10]
[376830726,1754135449270,-460.0,0.00026849,10]
[376830728,1754135449281,-460.0,0.00026849,10]
[376830730,1754135449291,-460.0,0.00026849,10]
[376830732,1754135449300,-460.0,0.00026849,10]
[376830734,1754135449310,-460.0,0.00026849,10]
[376830736,1754135449319,-460.0,0.00026849,10]
[376830738,1754135449329,-461.86619705,0.00026849,10]
[376830740,1754135449338,-460.0,0.00026849,10]
[376830742,1754135449347,-460.0,0.00026849,10]
[376830744,1754135449356,-460.0,0.00026849,10]
[376830746,1754135449365,-460.0,0.00026849,10]
[376830748,1754135449374,-460.0,0.00026849,10]
[376830750,1754135449383,-460.0,0.00026849,10]
[376830752,1754135449392,-460.0,0.00026849,10]
[376830754,1754135449401,-391.56,0.00026849,10]
[376830756,1754135449411,-166.83171779,0.00026849,10]
[376830758,1754135449420,-460.0,0.00026849,10]
[376830760,1754135449429,-460.0,0.00026849,10]
[376830762,1754135449439,-460.0,0.00026849,10]
[376830764,1754135449448,-460.0,0.00026849,10]
[376830766,1754135449457,-460.0,0.00026849,10]
[376830768,1754135449472,-460.0,0.00026849,10]
[376830771,1754135449486,-460.0,0.00026849,10]
[376830773,1754135449496,-583.23312618,0.00026849,10]
[376830774,1754135449508,-460.0,0.00026849,10]
[376830776,1754135449518,-460.0,0.00026849,10]
[376830778,1754135449527,-460.0,0.00026849,10]
[376830780,1754135449537,-460.0,0.00026849,10]
[376830782,1754135449547,-460.0,0.00026849,10]
[376830784,1754135449557,-460.0,0.00026849,10]
[376830786,1754135449566,-460.0,0.00026849,10]
[376830788,1754135449576,-460.0,0.00026849,10]
[376830790,1754135449586,-460.0,0.00026849,10]
[376830792,1754135449596,-460.0,0.00026849,10]
[376830794,1754135449605,-460.0,0.00026849,10]
[376830796,1754135449616,-460.0,0.00026849,10]
[376830799,1754135449627,-460.0,0.00026849,10]
[376830801,1754135449637,-313.26092699,0.00026849,10]
[376830803,1754135449647,-460.0,0.00026849,10]
[376830805,1754135449657,-460.0,0.00026849,10]
[376830807,1754135449667,-195.98645433,0.00026849,10]
[376830809,1754135449677,-460.0,0.00026849,10]
[376830811,1754135449687,-460.0,0.00026849,10]
[376830813,1754135449697,-240.73787298,0.00026849,10]
[376830815,1754135449707,-460.0,0.00026849,10]
[376830817,1754135449717,-460.0,0.00026849,10]
[376830819,1754135449726,-460.0,0.00026849,10]
[376830821,1754135449736,-460.0,0.00026849,10]
[376830823,1754135449746,-460.0,0.00026849,10]
[376830825,1754135449756,-412.8133546,0.00026849,10]
[376830827,1754135449766,-461.02685266,0.00026849,10]
[376830829,1754135449777,-460.0,0.00026849,10]
[376830831,1754135449786,-460.0,0.00026849,10]
[376830833,1754135449796,-460.0,0.00026849,10]
[376830835,1754135449806,-500.0,0.0002685,2]
[376830837,1754135449815,-647.0,0.0002685,2]
[376830839,1754135449829,-151.0,0.0002685,2]
[376830841,1754135449839,-151.0,0.0002685,2]
[376830843,1754135449848,-151.0,0.0002685,2]
[376830845,1754135449859,-151.0,0.0002685,2]
[376830847,1754135449868,-500.0,0.0002685,2]
[376830849,1754135449879,-227.04716193,0.0002685,2]
[376830851,1754135449888,-151.0,0.0002685,2]
[376830854,1754135449900,-151.0,0.0002685,2]
[376830855,1754135449910,-151.0,0.0002685,2]
[376830857,1754135449920,-151.0,0.0002685,2]
[376830859,1754135449929,-151.0,0.0002685,2]
[376830861,1754135449939,-3969.47317748,0.00026858,2]
[376830863,1754135449948,-6025.00312029,0.00026858,2]
[376830865,1754135449957,-5449.34046876,0.00026858,2]
[376830867,1754135449967,-741.51399123,0.00026858,2]
[376830869,1754135449977,-2963.08990895,0.00026858,2]
[376830871,1754135449987,-1763.90315598,0.00026858,2]
[376830873,1754135449996,-3497.43749106,0.00026858,2]
[376830875,1754135450006,-2200.0,0.00026864,2]
[376830877,1754135450015,-491.22980123,0.00026873,2]
[376830879,1754135450024,-200.30202841,0.00026873,2]
[376830881,1754135450034,-155.349076,0.00026873,6]
[376830883,1754135450046,-1446.7273651,0.00026891,18]
[376830885,1754135450055,-6044.47,0.00026895,7]
[376830887,1754135450064,-155.349076,0.00026897,6]
[376830889,1754135450074,-774.91,0.00026899,10]
[376830891,1754135450083,-160.0,0.000269,2]
[376830893,1754135450092,-500.0,0.00026905,2]
[376830895,1754135450101,-774.91,0.00026989,10]
[376830897,1754135450111,-774.91,0.00026989,10]
[376830899,1754135450120,-774.91,0.00026989,10]
[376830901,1754135450129,-774.91,0.00026989,10]
[376830903,1754135450138,-774.91,0.00026989,10]
[376830905,1754135450148,-155.349076,0.00026998,7]
[376830907,1754135450157,-774.91,0.00026999,10]
[376830909,1754135450167,-774.91,0.00026999,10]
[376830912,1754135450176,-774.91,0.00026999,10]
[376830913,1754135450186,-774.91,0.00026999,10]
[376830916,1754135450196,-774.91,0.00026999,10]
[376830918,1754135450205,-774.91,0.00026999,10]
[376830920,1754135450214,-774.91,0.00026999,10]
[376830921,1754135450223,-774.98102187,0.00026999,10]
[376830923,1754135450233,-151902.42044656,0.00027,2]
[376830925,1754135450243,-1375.63489,0.00027,4]
[376830927,1754135450252,-151485.21,0.00027,2]
[376830929,1754135450261,-156.0,0.00027,2]
[376830931,1754135450271,-103490.55,0.00027,2]
[376830933,1754135450280,-155.349076,0.00027024,10]
[376830935,1754135450289,-340.87,0.00027038,2]
[376830937,1754135450298,-2500.0,0.00027064,2]
[376830939,1754135450308,-882.44469914,0.00027074,2]
[376830941,1754135450317,-2000.0,0.000271,2]
[376830943,1754135450326,-1000.0,0.000271,30]
[376830945,1754135450336,-538.0,0.000271,2]
[376830947,1754135450346,-538.0,0.000271,2]
[376830949,1754135450355,-538.0,0.000271,2]
[376830951,1754135450364,-538.0,0.000271,2]
[376830953,1754135450373,-538.0,0.000271,2]
[376830955,1754135450382,-538.0,0.000271,2]
[376830957,1754135450391,-538.0,0.000271,2]
[376830959,1754135450400,-538.0,0.000271,2]
[376830961,1754135450410,-538.0,0.000271,2]
[376830963,1754135450419,-538.0,0.000271,2]
[376830965,1754135450428,-538.0,0.000271,2]
[376830967,1754135450438,-538.0,0.000271,2]
[376830969,1754135450449,-623.10562031,0.000271,2]
[376830971,1754135450458,-538.0,0.000271,2]
[376830972,1754135450467,-538.0,0.000271,2]
[376830974,1754135450476,-538.0,0.000271,2]
[376830976,1754135450486,-538.0,0.000271,2]
[376830978,1754135450495,-538.0,0.000271,2]
[376830980,1754135450505,-538.0,0.000271,2]
[376830982,1754135450514,-311.55281016,0.000271,2]
[376830984,1754135450523,-538.0,0.000271,2]
[376830986,1754135450534,-538.0,0.000271,2]
[376830988,1754135450543,-538.0,0.000271,2]
[376830990,1754135450552,-155.77640508,0.000271,2]
[376830993,1754135450565,-538.0,0.000271,2]
[376830995,1754135450574,-346.88820254,0.000271,2]
[376830997,1754135450584,-442.44410127,0.000271,2]
[376830999,1754135450594,-221.22205063,0.000271,2]
[376831001,1754135450603,-221.22205063,0.000271,2]
[376831003,1754135450613,-155.349076,0.00027112,10]
[376831005,1754135450622,-500.0,0.00027124,2]
[376831007,1754135450632,-647.0,0.00027124,2]
[376831009,1754135450642,-198.0,0.00027124,2]
[376831011,1754135450651,-198.0,0.00027124,2]
[376831013,1754135450660,-151.0,0.00027124,2]
[376831015,1754135450670,-500.0,0.00027124,2]
[376831017,1754135450680,-151.0,0.00027124,2]
[376831019,1754135450689,-198.64356341,0.00027124,2]
[376831021,1754135450698,-151.0,0.00027124,2]
[376831022,1754135450707,-151.0,0.00027124,2]
[376831024,1754135450716,-913.54739873,0.00027149,2]
[376831026,1754135450726,-500.0,0.00027153,2]
[376831028,1754135450736,-905.04786144,0.00027157,2]
[376831030,1754135450745,-3396.6955792,0.000272,5]
[376831032,1754135450756,-1110.16,0.000272,2]
[376831034,1754135450766,-86673.34036404,0.000272,2]
[376831048,1754135450892,-9571.36433976,0.000272,2]
[376831049,1754135450904,-155.349076,0.000272,10]
[376831051,1754135450914,-150.0,0.000272,10]
[376831053,1754135450923,-155.349076,0.00027222,7]
[376831055,1754135450933,-560.39630456,0.00027266,2]
[376831057,1754135450943,-764.21,0.00027275,10]
[376831059,1754135450952,-800.0,0.00027279,2]
[376831061,1754135450961,-1009.318079,0.000273,5]
[376831063,1754135450971,-800.0,0.00027303,2]
[376831065,1754135450980,-500.0,0.00027318,10]
[376831067,1754135450990,-500.0,0.00027318,10]
[376831069,1754135450999,-500.0,0.0002732,2]
[376831071,1754135451009,-500.0,0.0002732,2]
[376831073,1754135451019,-593.24961039,0.0002732,2]
[376831075,1754135451028,-500.0,0.0002732,2]
[376831077,1754135451037,-517.46753797,0.0002732,2]
[376831079,1754135451047,-151.103829,0.0002732,7]
[376831081,1754135451056,-206.0,0.0002732,2]
[376831083,1754135451065,-208.0,0.0002732,2]
[376831085,1754135451074,-215.527,0.0002732,2]
[376831086,1754135451084,-653.01587776,0.00027338,30]
[376831088,1754135451094,-206.0,0.0002734,2]
[376831090,1754135451103,-151.0,0.0002737,7]
[376831092,1754135451112,-151.0,0.0002737,7]
[376831094,1754135451121,-151.0,0.0002737,7]
[376831096,1754135451130,-277.656296,0.0002737,7]
[376831098,1754135451139,-206.0,0.0002737,2]
[376831100,1754135451148,-325.0,0.00027372,3]
[376831102,1754135451158,-325.0,0.00027372,3]
[376831104,1754135451168,-325.0,0.00027372,3]
[376831106,1754135451178,-325.0,0.00027372,3]
[376831107,1754135451187,-325.0,0.00027372,3]
[376831108,1754135451196,-325.0,0.00027372,3]
[376831109,1754135451205,-325.0,0.00027372,3]
[376831110,1754135451214,-325.0,0.00027372,3]
[376831111,1754135451223,-325.0,0.00027372,3]
[376831112,1754135451233,-152.0,0.00027372,3]
[376831113,1754135451242,-325.0,0.00027372,3]
[376831114,1754135451252,-160.0,0.00027378,4]
[376831115,1754135451262,-162.1604438,0.00027378,5]
[376831116,1754135451271,-155.349076,0.00027384,3]
[376831117,1754135451281,-151.0,0.00027386,7]
[376831118,1754135451290,-196.56921367,0.0002739,2]
[376831123,1754135451404,-160.21293917,0.0002739,7]
[376831125,1754135451414,-484.96,0.00027392,7]
[376831127,1754135451424,-500.0,0.00027397,2]
[376831129,1754135451433,-500.0,0.00027397,2]
[376831131,1754135451443,-218.71013639,0.00027397,2]
[376831133,1754135451452,-1000.0,0.00027397,5]
[376831135,1754135451461,-1000.0,0.00027397,5]
[376831137,1754135451470,-1000.0,0.00027397,5]
[376831139,1754135451479,-1000.0,0.00027397,5]
[376831141,1754135451489,-1000.0,0.00027397,5]
[376831143,1754135451498,-388.99558146,0.00027397,5]
[376831145,1754135451507,-461.69590924,0.00027397,30]
[376831147,1754135451517,-500.0,0.00027397,2]
[376831149,1754135451528,-500.0,0.00027397,2]
[376831151,1754135451538,-500.0,0.00027397,2]
[376831153,1754135451547,-500.0,0.00027397,2]
[376831155,1754135451556,-500.0,0.00027397,2]
[376831157,1754135451567,-500.0,0.00027397,2]
[376831159,1754135451576,-500.0,0.00027397,2]
[376831161,1754135451585,-500.0,0.00027397,2]
[376831163,1754135451597,-500.0,0.00027397,2]
[376831165,1754135451606,-500.0,0.00027397,2]
[376831167,1754135451616,-500.0,0.00027397,2]
[376831169,1754135451625,-500.0,0.00027397,2]
[376831171,1754135451634,-500.0,0.00027397,2]
[376831173,1754135451643,-500.0,0.00027397,2]
[376831175,1754135451652,-500.0,0.00027397,2]
[376831177,1754135451663,-1000.0,0.00027397,7]
[376831179,1754135451672,-1000.0,0.00027397,7]
[376831181,1754135451682,-1000.0,0.00027397,7]
[376831183,1754135451691,-1000.0,0.00027397,7]
[376831185,1754135451701,-1000.0,0.00027397,7]
[376831187,1754135451710,-1000.0,0.00027397,7]
[376831189,1754135451720,-1000.0,0.00027397,7]
[376831190,1754135451729,-1000.0,0.00027397,7]
[376831192,1754135451739,-1000.0,0.00027397,7]
[376831194,1754135451748,-1000.0,0.00027397,7]
[376831196,1754135451758,-1000.0,0.00027397,7]
[376831198,1754135451768,-1000.0,0.00027397,7]
[376831200,1754135451779,-1000.0,0.00027397,7]
[376831202,1754135451788,-1000.0,0.00027397,7]
[376831204,1754135451797,-1000.0,0.00027397,7]
[376831206,1754135451807,-1000.0,0.00027397,7]
[376831208,1754135451817,-1000.0,0.00027397,7]
[376831210,1754135451835,-1000.0,0.00027397,7]
[376831212,1754135451845,-1000.0,0.00027397,7]
[376831214,1754135451854,-1000.0,0.00027397,7]
[376831216,1754135451863,-1000.0,0.00027397,7]
[376831218,1754135451875,-1000.0,0.00027397,7]
[376831220,1754135451884,-1000.0,0.00027397,7]
[376831222,1754135451894,-1000.0,0.00027397,7]
[376831224,1754135451905,-1000.0,0.00027397,7]
[376831226,1754135451914,-1000.0,0.00027397,7]
[376831228,1754135451923,-1000.0,0.00027397,7]
[376831230,1754135451933,-1000.0,0.00027397,7]
[376831232,1754135451942,-1000.0,0.00027397,7]
[376831234,1754135451951,-1000.0,0.00027397,7]
[376831236,1754135451960,-611.46512712,0.00027397,7]
[376831238,1754135451973,-287.70733921,0.00027397,7]
[376831246,1754135452047,-81.9475617,0.00027397,7]
[376831249,1754135452059,-18.87997197,0.00027397,7]
[376831251,1754135452069,-1000.0,0.00027397,7]
[376831253,1754135452078,-1000.0,0.00027397,7]
[376831254,1754135452087,-1000.0,0.00027397,7]
[376831256,1754135452097,-1000.0,0.00027397,7]
[376831258,1754135452106,-1000.0,0.00027397,7]
[376831260,1754135452115,-1000.0,0.00027397,7]
[376831262,1754135452124,-1000.0,0.00027397,7]
[376831264,1754135452133,-883.30599868,0.00027397,7]
[376831267,1754135452156,-116.69400132,0.00027397,7]
[376831269,1754135452165,-43.7965132,0.00027397,7]
[376831272,1754135452181,-460.0,0.00026849,10]
[376831274,1754135452190,-956.2034868,0.00027397,7]
[376831276,1754135452200,-1000.0,0.00027397,7]
[376831278,1754135452209,-1000.0,0.00027397,7]
[376831280,1754135452220,-748.22141454,0.00027397,7]
[376831282,1754135452231,-251.77858546,0.00027397,7]
[376831284,1754135452240,-1000.0,0.00027397,7]
[376831286,1754135452251,-1000.0,0.00027397,7]
[376831288,1754135452260,-1000.0,0.00027397,7]
[376831290,1754135452269,-291.6313043,0.00027397,2]
[376831292,1754135452280,-1000.0,0.00027397,7]
[376831294,1754135452290,-1000.0,0.00027397,7]
[376831296,1754135452299,-160.41769566,0.00027397,5]
[376831298,1754135452309,-500.0,0.00027397,5]
[376831300,1754135452319,-500.0,0.00027397,5]
[376831302,1754135452328,-500.0,0.00027398,2]
[376831304,1754135452338,-647.0,0.00027398,2]
[376831306,1754135452348,-151.0,0.00027398,2]
[376831308,1754135452357,-500.0,0.00027398,2]
[376831310,1754135452367,-151.0,0.00027398,2]
[376831312,1754135452376,-179.88,0.00027398,2]
[376831314,1754135452385,-286.0,0.00027399,120]
[376831316,1754135452394,-165.99498743,0.00027399,120]
[376831318,1754135452406,-419.00501257,0.00027399,120]
[376831320,1754135452416,-12644.26590849,0.000274,3]
[376831322,1754135452425,-206.0,0.000274,30]
[376831324,1754135452434,-644.0,0.000274,2]
[376831326,1754135452444,-645.27694768,0.000274,2]
[376831330,1754135452483,-460.0,0.00026849,10]
[376831332,1754135452493,-40.0,0.00026849,10]
[376831334,1754135452504,-124.92923225,0.00026849,10]
[376831336,1754135452515,-645.74076775,0.00027397,7]
[376831339,1754135452528,-3471.07968087,0.00027397,7]
[376831341,1754135452539,-304.2614001,0.00027397,7]
[376831343,1754135452551,-258.1969909,0.00027397,7]
[376831345,1754135452562,-1365.19116038,0.00027397,7]
[376831347,1754135452571,-316.19575232,0.000274,2]
[376831349,1754135452581,-961.4727,0.000274,2]
[376831351,1754135452590,-151.0,0.00027401,7]
[376831353,1754135452599,-151.0,0.00027401,7]
[376831355,1754135452609,-151.0,0.00027401,7]
[376831357,1754135452618,-151.0,0.00027401,7]
[376831359,1754135452627,-221.85191,0.00027401,7]
[376831361,1754135452636,-151.0,0.00027401,7]
[376831363,1754135452645,-151.0,0.00027401,7]
[376831365,1754135452655,-275.142379,0.00027401,7]
[376831367,1754135452664,-151.0,0.00027401,7]
[376831369,1754135452673,-151.0,0.00027401,7]
[376831370,1754135452682,-151.0,0.00027401,7]
[376831372,1754135452691,-151.0,0.00027401,7]
[376831374,1754135452701,-161.732933,0.00027401,7]
[376831376,1754135452710,-161.732933,0.00027401,7]
[376831378,1754135452719,-161.732933,0.00027401,7]
[376831380,1754135452728,-161.732933,0.00027401,7]
[376831382,1754135452738,-151.0,0.00027401,14]
[376831384,1754135452747,-151.0,0.00027401,14]
[376831386,1754135452757,-151.0,0.00027401,14]
[376831388,1754135452766,-151.0,0.00027401,14]
[376831389,1754135452775,-151.0,0.00027401,14]
[376831391,1754135452787,-151.0,0.00027401,14]
[376831393,1754135452797,-151.0,0.00027401,14]
[376831395,1754135452811,-151.0,0.00027401,14]
[376831397,1754135452822,-230.29703,0.00027401,14]
[376831399,1754135452833,-151.0,0.00027401,7]
[376831401,1754135452842,-151.0,0.00027401,7]
[376831403,1754135452852,-427.20376381,0.00027406,120]
[376831405,1754135452861,-854.24429629,0.00027407,120]
[376831407,1754135452872,-200.51240394,0.00027409,10]
[376831409,1754135452882,-151.0,0.00027409,7]
[376831411,1754135452891,-151.932771,0.00027409,7]
[376831413,1754135452901,-274.199039,0.00027409,7]
[376831415,1754135452910,-151.0,0.00027409,7]
[376831417,1754135452920,-151.0,0.00027409,7]
[376831419,1754135452929,-151.0,0.00027409,7]
[376831421,1754135452938,-151.0,0.00027409,7]
[376831422,1754135452947,-151.0,0.00027409,7]
[376831424,1754135452956,-151.0,0.00027409,7]
[376831426,1754135452965,-151.0,0.00027409,7]
[376831428,1754135452974,-151.0,0.00027409,7]
[376831430,1754135452985,-151.0,0.00027409,7]
[376831432,1754135452995,-151.0,0.00027409,7]
[376831434,1754135453005,-151.0,0.00027409,7]
[376831436,1754135453015,-151.0,0.00027409,7]
[376831438,1754135453024,-151.0,0.00027409,7]
[376831440,1754135453034,-151.0,0.00027409,7]
[376831442,1754135453044,-181.626702,0.00027409,7]
[376831444,1754135453053,-1779.72009567,0.0002741,2]
[376831446,1754135453063,-166.18043601,0.0002741,2]
[376831448,1754135453072,-2482.80271199,0.0002741,15]
[376831450,1754135453081,-498.0,0.0002741,7]
[376831452,1754135453090,-153.28870953,0.0002741,7]
[376831454,1754135453099,-24999.999999,0.0002741,2]
[376831456,1754135453108,-15483.20640806,0.0002741,20]
[376831458,1754135453120,-16950.04608926,0.0002741,20]
[376831460,1754135453132,-5638.39949887,0.0002741,20]
[376831464,1754135453161,-460.0,0.00026849,10]
[376831466,1754135453171,-460.0,0.00026849,10]
[376831468,1754135453180,-460.0,0.00026849,10]
[376831470,1754135453190,-460.0,0.00026849,10]
[376831472,1754135453199,-6029.95978632,0.0002741,20]
[376831475,1754135453228,-499.99999999,0.00023996,2]
[376831477,1754135453238,-4120.04839328,0.0002741,20]
[376831480,1754135453255,-90360.10901752,0.0002741,20]
[376831482,1754135453271,-23485.47570948,0.0002741,20]
[376831484,1754135453284,-3454.02219816,0.0002741,20]
[376831486,1754135453295,-5919.82181791,0.0002741,20]
[376831488,1754135453306,-12489.03794154,0.0002741,20]
[376831490,1754135453318,-17691.96165883,0.0002741,20]
[376831493,1754135453329,-680.90757339,0.0002741,20]
[376831888,1754135466158,23119.65726959,0.0002389,2]
[376831889,1754135466181,30000.0,0.0002389,2]
[376831890,1754135466205,20645.30707676,0.0002389,2]
[376831891,1754135496518,164.275291,0.00013699,2]
[376831892,1754135496830,164.275291,0.00021404,2]
[376831894,1754135534586,336.84097629,0.00023896,2]
[376831895,1754135551286,200.0,0.0002605,120]
[376831898,1754135614958,200.0,0.000273,120]
[376831899,1754135628632,8689.30136495,0.0002389,2]
[376831900,1754135628656,30000.0,0.0002389,2]
[376831901,1754135628680,30000.0,0.0002389,2]